[Event "Titled Tuesday Blitz January 17 Late 2023"]
[White "Radovanovic, Dusan"]
[Black "Averjanov, Alexey"]
[WhiteFideId "926868"]
[BlackFideId "14109867"]
[WhiteElo "2311"]
[BlackElo "2399"]
[Result "1/2-1/2"]
[Round "03"]
[TimeControl "180+2"]
[Date "2023.01.17"]
[WhiteClock "0:00:05"]
[BlackClock "0:00:07"]

1. e4 {[%clk 0:03:00]}  c6 {[%clk 0:02:56]} 2. d4 {[%clk 0:02:59]}  d5 {[%clk 0:02:56]} 3. e5 {[%clk 0:03:00]}  Bf5 {[%clk 0:02:56]} 4. h4 {[%clk 0:02:59]}  h5 {[%clk 0:02:56]} 5. Bd3 {[%clk 0:03:00]}  Bxd3 {[%clk 0:02:55]} 6. Qxd3 {[%clk 0:03:01]}  e6 {[%clk 0:02:55]} 7. Bg5 {[%clk 0:03:01]}  Qa5+ {[%clk 0:02:54]} 8. Nd2 {[%clk 0:03:01]}  Qa6 {[%clk 0:02:52]} 9. c4 {[%clk 0:03:01]}  Bb4 {[%clk 0:02:52]} 10. b3 {[%clk 0:02:58]}  Nd7 {[%clk 0:02:50]} 11. Ne2 {[%clk 0:02:58]}  Ne7 {[%clk 0:02:50]} 12. O-O {[%clk 0:02:58]}  Ng6 {[%clk 0:02:47]} 13. Nf3 {[%clk 0:02:47]}  Be7 {[%clk 0:02:46]} 14. g3 {[%clk 0:02:34]}  Bxg5 {[%clk 0:02:44]} 15. Nxg5 {[%clk 0:02:33]}  Ne7 {[%clk 0:02:44]} 16. Qc3 {[%clk 0:02:25]}  Nf5 {[%clk 0:02:40]} 17. Nf4 {[%clk 0:02:24]}  g6 {[%clk 0:02:31]} 18. Rac1 {[%clk 0:02:16]}  O-O {[%clk 0:02:20]} 19. Rfd1 {[%clk 0:02:13]}  Rfe8 {[%clk 0:02:18]} 20. Qf3 {[%clk 0:02:11]}  Kg7 {[%clk 0:02:14]} 21. cxd5 {[%clk 0:02:01]}  cxd5 {[%clk 0:02:14]} 22. Rc7 {[%clk 0:01:59]}  Rad8 {[%clk 0:02:13]} 23. Nxh5+ {[%clk 0:01:46]}  gxh5 {[%clk 0:02:13]} 24. Qxh5 {[%clk 0:01:46]}  Nh6 {[%clk 0:02:12]} 25. Nh3 {[%clk 0:01:33]}  Qb6 {[%clk 0:02:04]} 26. Rc3 {[%clk 0:01:22]}  Rh8 {[%clk 0:01:52]} 27. Rf3 {[%clk 0:00:59]}  Nf5 {[%clk 0:01:37]} 28. Qg5+ {[%clk 0:00:56]}  Kf8 {[%clk 0:01:37]} 29. h5 {[%clk 0:00:40]}  Rg8 {[%clk 0:00:44]} 30. Qf4 {[%clk 0:00:39]}  Rc8 {[%clk 0:00:41]} 31. g4 {[%clk 0:00:32]}  Qb5 {[%clk 0:00:27]} 32. Kh2 {[%clk 0:00:25]}  Qe2 {[%clk 0:00:27]} 33. gxf5 {[%clk 0:00:21]}  Qxd1 {[%clk 0:00:13]} 34. fxe6 {[%clk 0:00:21]}  Nxe5 {[%clk 0:00:13]} 35. dxe5 {[%clk 0:00:16]}  Rg7 {[%clk 0:00:13]} 36. h6 {[%clk 0:00:14]}  Rh7 {[%clk 0:00:12]} 37. exf7 {[%clk 0:00:08]}  Rc1 {[%clk 0:00:12]} 38. e6 {[%clk 0:00:07]}  Qh1+ {[%clk 0:00:11]} 39. Kg3 {[%clk 0:00:08]}  Qd1 {[%clk 0:00:10]} 40. e7+ {[%clk 0:00:06]}  Kxe7 {[%clk 0:00:10]} 41. f8=Q+ {[%clk 0:00:07]}  Kd7 {[%clk 0:00:11]} 42. Q8f5+ {[%clk 0:00:06]}  Kc6 {[%clk 0:00:11]} 43. Qg6+ {[%clk 0:00:06]}  Kb5 {[%clk 0:00:10]} 44. Qa4+ {[%clk 0:00:06]}  Kc5 {[%clk 0:00:10]} 45. Qa5+ {[%clk 0:00:03]}  b5 {[%clk 0:00:09]} 46. Qc7+ {[%clk 0:00:02]}  Kb4 {[%clk 0:00:09]} 47. Rf4+ {[%clk 0:00:02]}  Ka3 {[%clk 0:00:09]} 48. Qcd6+ {[%clk 0:00:02]}  Kb2 {[%clk 0:00:09]} 49. Qxh7 {[%clk 0:00:03]}  Qd3+ {[%clk 0:00:08]} 50. Kh4 {[%clk 0:00:04]}  Qxh7 {[%clk 0:00:08]} 51. Qe5+ {[%clk 0:00:04]}  Kxa2 {[%clk 0:00:07]} 52. Qg5 {[%clk 0:00:04]}  Qd3 {[%clk 0:00:06]} 53. Rg4 {[%clk 0:00:03]}  Rc3 {[%clk 0:00:06]} 54. Rg3 {[%clk 0:00:04]}  Qe4+ {[%clk 0:00:06]} 55. Rg4 {[%clk 0:00:04]}  Qd3 {[%clk 0:00:06]} 56. Rg3 {[%clk 0:00:04]}  Qe4+ {[%clk 0:00:07]} 57. Rg4 {[%clk 0:00:05]}  Qd3 {[%clk 0:00:07]} 1/2-1/2


[Site "https://www.chess.com"]

[Event "Titled Tuesday Blitz January 17 Late 2023"]
[White "Urbina Perez, Juan Antonio"]
[Black "Flores Quillas, Diego Saul Rodri"]
[WhiteFideId "2217368"]
[BlackFideId "3822508"]
[WhiteElo "2266"]
[BlackElo "2359"]
[Result "1-0"]
[Round "03"]
[TimeControl "180+2"]
[Date "2023.01.17"]
[WhiteClock "0:00:34"]
[BlackClock "0:00:09"]

1. e4 {[%clk 0:02:56]}  c5 {[%clk 0:02:58]} 2. Nf3 {[%clk 0:02:52]}  d6 {[%clk 0:02:57]} 3. Bb5+ {[%clk 0:02:52]}  Nd7 {[%clk 0:02:57]} 4. d4 {[%clk 0:02:52]}  cxd4 {[%clk 0:02:52]} 5. Qxd4 {[%clk 0:02:53]}  a6 {[%clk 0:02:51]} 6. Bxd7+ {[%clk 0:02:53]}  Bxd7 {[%clk 0:02:52]} 7. Nc3 {[%clk 0:02:53]}  Nf6 {[%clk 0:02:52]} 8. O-O {[%clk 0:02:52]}  e5 {[%clk 0:02:43]} 9. Qd3 {[%clk 0:02:51]}  h6 {[%clk 0:02:43]} 10. a4 {[%clk 0:02:50]}  Bc6 {[%clk 0:02:40]} 11. Nd2 {[%clk 0:02:49]}  Be7 {[%clk 0:02:37]} 12. Nc4 {[%clk 0:02:50]}  O-O {[%clk 0:02:28]} 13. Ne3 {[%clk 0:02:49]}  Qd7 {[%clk 0:02:22]} 14. Rd1 {[%clk 0:02:36]}  b5 {[%clk 0:02:09]} 15. axb5 {[%clk 0:02:32]}  axb5 {[%clk 0:02:10]} 16. Rxa8 {[%clk 0:02:32]}  Rxa8 {[%clk 0:02:11]} 17. Ned5 {[%clk 0:02:26]}  Nxd5 {[%clk 0:01:51]} 18. Nxd5 {[%clk 0:02:27]}  Bd8 {[%clk 0:01:51]} 19. Be3 {[%clk 0:02:20]}  Rc8 {[%clk 0:01:49]} 20. c3 {[%clk 0:02:18]}  Qe6 {[%clk 0:01:46]} 21. f3 {[%clk 0:02:12]}  Bg5 {[%clk 0:01:05]} 22. Bxg5 {[%clk 0:01:59]}  hxg5 {[%clk 0:01:06]} 23. Nb4 {[%clk 0:01:59]}  Qb3 {[%clk 0:00:47]} 24. Rd2 {[%clk 0:01:46]}  g4 {[%clk 0:00:43]} 25. Qxd6 {[%clk 0:01:39]}  gxf3 {[%clk 0:00:42]} 26. gxf3 {[%clk 0:01:36]}  Qc4 {[%clk 0:00:33]} 27. Nxc6 {[%clk 0:01:30]}  Rxc6 {[%clk 0:00:32]} 28. Qd8+ {[%clk 0:01:29]}  Kh7 {[%clk 0:00:33]} 29. Qd5 {[%clk 0:01:20]}  Rg6+ {[%clk 0:00:24]} 30. Kf2 {[%clk 0:01:19]}  Qc7 {[%clk 0:00:21]} 31. Ke3 {[%clk 0:00:54]}  Qb6+ {[%clk 0:00:19]} 32. Ke2 {[%clk 0:00:50]}  Rg2+ {[%clk 0:00:16]} 33. Kd1 {[%clk 0:00:50]}  Qg1+ {[%clk 0:00:16]} 34. Kc2 {[%clk 0:00:50]}  Qxh2 {[%clk 0:00:17]} 35. b3 {[%clk 0:00:41]}  g5 {[%clk 0:00:11]} 36. Qxf7+ {[%clk 0:00:35]}  Kh6 {[%clk 0:00:10]} 37. Qf6+ {[%clk 0:00:35]}  Kh5 {[%clk 0:00:10]} 38. Qh8+ {[%clk 0:00:33]}  Kg6 {[%clk 0:00:09]} 39. Qxh2 {[%clk 0:00:34]} 1-0


[Site "https://www.chess.com"]

[Event "Titled Tuesday Blitz January 17 Late 2023"]
[White "Djokic, Mihailo"]
[Black "Mortazavi, Ali"]
[WhiteFideId "976440"]
[BlackFideId "401323"]
[WhiteElo "2192"]
[BlackElo "2333"]
[Result "1-0"]
[Round "03"]
[TimeControl "180+2"]
[Date "2023.01.17"]
[WhiteClock "0:00:15"]
[BlackClock "0:00:03"]

1. e4 {[%clk 0:03:00]}  c6 {[%clk 0:02:59]} 2. d4 {[%clk 0:03:00]}  d5 {[%clk 0:03:00]} 3. e5 {[%clk 0:03:01]}  Bf5 {[%clk 0:02:59]} 4. h4 {[%clk 0:03:01]}  c5 {[%clk 0:03:00]} 5. dxc5 {[%clk 0:02:59]}  Nc6 {[%clk 0:02:57]} 6. Nc3 {[%clk 0:02:41]}  d4 {[%clk 0:02:20]} 7. Nce2 {[%clk 0:02:34]}  Nb4 {[%clk 0:02:13]} 8. Ng3 {[%clk 0:01:22]}  Nxc2+ {[%clk 0:02:11]} 9. Qxc2 {[%clk 0:01:21]}  Bxc2 {[%clk 0:02:09]} 10. Bb5+ {[%clk 0:01:21]}  Qd7 {[%clk 0:02:09]} 11. Bxd7+ {[%clk 0:01:22]}  Kxd7 {[%clk 0:02:10]} 12. Nf3 {[%clk 0:01:20]}  d3 {[%clk 0:01:32]} 13. Be3 {[%clk 0:01:20]}  Nh6 {[%clk 0:01:26]} 14. Nd4 {[%clk 0:01:13]}  e6 {[%clk 0:01:22]} 15. Nxc2 {[%clk 0:01:12]}  dxc2 {[%clk 0:01:21]} 16. Rc1 {[%clk 0:01:01]}  Ng4 {[%clk 0:01:20]} 17. Bd4 {[%clk 0:00:57]}  Kc6 {[%clk 0:01:09]} 18. f3 {[%clk 0:00:55]}  Rd8 {[%clk 0:01:08]} 19. Ne2 {[%clk 0:00:54]}  Nh6 {[%clk 0:01:04]} 20. Rxc2 {[%clk 0:00:55]}  Nf5 {[%clk 0:01:03]} 21. Bf2 {[%clk 0:00:55]}  h5 {[%clk 0:01:02]} 22. g4 {[%clk 0:00:54]}  hxg4 {[%clk 0:01:01]} 23. fxg4 {[%clk 0:00:55]}  Nh6 {[%clk 0:01:00]} 24. Nd4+ {[%clk 0:00:45]}  Kd5 {[%clk 0:00:47]} 25. c6 {[%clk 0:00:43]}  Bb4+ {[%clk 0:00:42]} 26. Ke2 {[%clk 0:00:43]}  Nxg4 {[%clk 0:00:39]} 27. c7 {[%clk 0:00:43]}  Rc8 {[%clk 0:00:34]} 28. Nb5 {[%clk 0:00:43]}  Nxf2 {[%clk 0:00:20]} 29. Kxf2 {[%clk 0:00:42]}  a6 {[%clk 0:00:21]} 30. Rd1+ {[%clk 0:00:41]}  Kxe5 {[%clk 0:00:21]} 31. Na7 {[%clk 0:00:36]}  Ba5 {[%clk 0:00:16]} 32. Nxc8 {[%clk 0:00:36]}  Rxc8 {[%clk 0:00:16]} 33. Rc5+ {[%clk 0:00:35]}  Kf6 {[%clk 0:00:15]} 34. Rxa5 {[%clk 0:00:35]}  Rxc7 {[%clk 0:00:16]} 35. Rd2 {[%clk 0:00:35]}  Rc4 {[%clk 0:00:16]} 36. h5 {[%clk 0:00:35]}  Rf4+ {[%clk 0:00:15]} 37. Kg3 {[%clk 0:00:35]}  Rf1 {[%clk 0:00:15]} 38. Ra3 {[%clk 0:00:34]}  Rg1+ {[%clk 0:00:15]} 39. Kf4 {[%clk 0:00:34]}  Rh1 {[%clk 0:00:15]} 40. Rb3 {[%clk 0:00:33]}  Rxh5 {[%clk 0:00:15]} 41. Rxb7 {[%clk 0:00:33]}  g5+ {[%clk 0:00:15]} 42. Kg3 {[%clk 0:00:33]}  Kg6 {[%clk 0:00:13]} 43. Rf2 {[%clk 0:00:34]}  f5 {[%clk 0:00:13]} 44. Rb6 {[%clk 0:00:34]}  f4+ {[%clk 0:00:12]} 45. Kg2 {[%clk 0:00:35]}  Kf5 {[%clk 0:00:12]} 46. Rxa6 {[%clk 0:00:36]}  Rh6 {[%clk 0:00:10]} 47. b4 {[%clk 0:00:30]}  g4 {[%clk 0:00:09]} 48. b5 {[%clk 0:00:25]}  f3+ {[%clk 0:00:09]} 49. Kg1 {[%clk 0:00:24]}  Kf4 {[%clk 0:00:08]} 50. Ra4+ {[%clk 0:00:19]}  Kg3 {[%clk 0:00:08]} 51. b6 {[%clk 0:00:18]}  e5 {[%clk 0:00:07]} 52. Rb4 {[%clk 0:00:16]}  e4 {[%clk 0:00:03]} 53. b7 {[%clk 0:00:15]}  e3 {[%clk 0:00:03]} 54. b8=Q+ {[%clk 0:00:15]}  Kh3 {[%clk 0:00:03]} 55. Rh2# {[%clk 0:00:15]} 1-0


[Site "https://www.chess.com"]

[Event "Titled Tuesday Blitz January 17 Late 2023"]
[White "Kleiman, Jake"]
[Black "Perez Perez, Gabriel"]
[WhiteFideId "2020041"]
[BlackFideId "32089147"]
[WhiteElo "2399"]
[BlackElo "2185"]
[Result "0-1"]
[Round "03"]
[TimeControl "180+2"]
[Date "2023.01.17"]
[WhiteClock "0:00:04"]
[BlackClock "0:00:03"]

1. e4 {[%clk 0:02:35]}  g6 {[%clk 0:02:55]} 2. d4 {[%clk 0:02:35]}  Bg7 {[%clk 0:02:55]} 3. Nc3 {[%clk 0:02:36]}  d6 {[%clk 0:02:55]} 4. Be3 {[%clk 0:02:36]}  a6 {[%clk 0:02:56]} 5. h3 {[%clk 0:02:37]}  b5 {[%clk 0:02:56]} 6. Nf3 {[%clk 0:02:37]}  Bb7 {[%clk 0:02:57]} 7. Bd3 {[%clk 0:02:37]}  Nf6 {[%clk 0:02:55]} 8. Qd2 {[%clk 0:02:38]}  b4 {[%clk 0:02:53]} 9. Ne2 {[%clk 0:02:37]}  Nxe4 {[%clk 0:02:51]} 10. Qxb4 {[%clk 0:02:37]}  Qc8 {[%clk 0:02:44]} 11. c4 {[%clk 0:02:32]}  c5 {[%clk 0:02:31]} 12. Qa4+ {[%clk 0:02:32]}  Qd7 {[%clk 0:02:24]} 13. Qc2 {[%clk 0:02:28]}  cxd4 {[%clk 0:02:14]} 14. Nexd4 {[%clk 0:02:19]}  Nc5 {[%clk 0:02:14]} 15. Be2 {[%clk 0:02:20]}  O-O {[%clk 0:02:12]} 16. b4 {[%clk 0:02:14]}  Ne6 {[%clk 0:01:58]} 17. Rd1 {[%clk 0:02:11]}  Nxd4 {[%clk 0:01:56]} 18. Bxd4 {[%clk 0:02:10]}  Bxd4 {[%clk 0:01:49]} 19. Rxd4 {[%clk 0:02:10]}  Nc6 {[%clk 0:01:50]} 20. Rh4 {[%clk 0:02:03]}  Qf5 {[%clk 0:01:21]} 21. Qb2 {[%clk 0:01:08]}  Rfb8 {[%clk 0:01:05]} 22. O-O {[%clk 0:01:08]}  Bc8 {[%clk 0:00:47]} 23. a3 {[%clk 0:01:07]}  Ra7 {[%clk 0:00:33]} 24. Qd2 {[%clk 0:01:05]}  Qf6 {[%clk 0:00:29]} 25. Qh6 {[%clk 0:01:00]}  Qg7 {[%clk 0:00:30]} 26. Qe3 {[%clk 0:01:00]}  Rc7 {[%clk 0:00:21]} 27. Re1 {[%clk 0:00:58]}  Bf5 {[%clk 0:00:18]} 28. Bf1 {[%clk 0:00:56]}  Rbc8 {[%clk 0:00:15]} 29. Qb6 {[%clk 0:00:52]}  Nb8 {[%clk 0:00:11]} 30. Rd4 {[%clk 0:00:44]}  Rc6 {[%clk 0:00:10]} 31. Qb7 {[%clk 0:00:40]}  Bd7 {[%clk 0:00:10]} 32. Rxe7 {[%clk 0:00:38]}  Be6 {[%clk 0:00:02]} 33. h4 {[%clk 0:00:22]}  Qf6 {[%clk 0:00:03]} 34. h5 {[%clk 0:00:21]}  g5 {[%clk 0:00:02]} 35. Qa7 {[%clk 0:00:16]}  g4 {[%clk 0:00:01]} 36. Nh2 {[%clk 0:00:16]}  Kf8 {[%clk 0:00:02]} 37. Rb7 {[%clk 0:00:15]}  Qd8 {[%clk 0:00:02]} 38. Nxg4 {[%clk 0:00:15]}  R6c7 {[%clk 0:00:02]} 39. Rxc7 {[%clk 0:00:14]}  Rxc7 {[%clk 0:00:03]} 40. Qb6 {[%clk 0:00:14]}  Nc6 {[%clk 0:00:03]} 41. Rd2 {[%clk 0:00:13]}  Bxg4 {[%clk 0:00:03]} 42. Qe3 {[%clk 0:00:12]}  Be6 {[%clk 0:00:03]} 43. Qh6+ {[%clk 0:00:13]}  Ke7 {[%clk 0:00:03]} 44. c5 {[%clk 0:00:13]}  d5 {[%clk 0:00:03]} 45. Bc4 {[%clk 0:00:12]}  Rd7 {[%clk 0:00:03]} 46. Bd3 {[%clk 0:00:12]}  Qf8 {[%clk 0:00:03]} 47. Qf4 {[%clk 0:00:12]}  Qg7 {[%clk 0:00:02]} 48. Re2 {[%clk 0:00:12]}  Nd4 {[%clk 0:00:02]} 49. Re3 {[%clk 0:00:11]}  Nb5 {[%clk 0:00:02]} 50. Bxb5 {[%clk 0:00:10]}  axb5 {[%clk 0:00:03]} 51. h6 {[%clk 0:00:10]}  Qa1+ {[%clk 0:00:03]} 52. Kh2 {[%clk 0:00:10]}  Rd8 {[%clk 0:00:03]} 53. Re5 {[%clk 0:00:09]}  Qd1 {[%clk 0:00:02]} 54. Qh4+ {[%clk 0:00:08]}  Kd7 {[%clk 0:00:02]} 55. Rg5 {[%clk 0:00:08]}  Qd2 {[%clk 0:00:02]} 56. Rg7 {[%clk 0:00:08]}  Qe2 {[%clk 0:00:01]} 57. Rxh7 {[%clk 0:00:07]}  Qe5+ {[%clk 0:00:02]} 58. g3 {[%clk 0:00:08]}  Qf5 {[%clk 0:00:02]} 59. Kg1 {[%clk 0:00:07]}  Qxh7 {[%clk 0:00:02]} 60. Qf4 {[%clk 0:00:07]}  Qe4 {[%clk 0:00:02]} 61. Qd6+ {[%clk 0:00:06]}  Ke8 {[%clk 0:00:02]} 62. Qc6+ {[%clk 0:00:06]}  Ke7 {[%clk 0:00:02]} 63. Qc7+ {[%clk 0:00:06]}  Rd7 {[%clk 0:00:03]} 64. Qc6 {[%clk 0:00:07]}  Qb1+ {[%clk 0:00:03]} 65. Kh2 {[%clk 0:00:06]}  Qh7 {[%clk 0:00:04]} 66. Qxb5 {[%clk 0:00:06]}  Qxh6+ {[%clk 0:00:04]} 67. Kg1 {[%clk 0:00:07]}  Qc1+ {[%clk 0:00:04]} 68. Kg2 {[%clk 0:00:07]}  d4 {[%clk 0:00:05]} 69. c6 {[%clk 0:00:06]}  Bd5+ {[%clk 0:00:05]} 70. Kh3 {[%clk 0:00:06]}  Qh6+ {[%clk 0:00:05]} 71. Kg4 {[%clk 0:00:06]}  Be6+ {[%clk 0:00:05]} 72. Kf3 {[%clk 0:00:04]}  Rd5 {[%clk 0:00:05]} 73. Qb7+ {[%clk 0:00:03]}  Kf6 {[%clk 0:00:04]} 74. c7 {[%clk 0:00:03]}  Qh5+ {[%clk 0:00:04]} 75. Ke4 {[%clk 0:00:04]}  Qf5# {[%clk 0:00:03]} 0-1


[Site "https://www.chess.com"]

[Event "Titled Tuesday Blitz January 17 Late 2023"]
[White "Rosen, Eric"]
[Black "Lopez Gracia, Fernando"]
[WhiteFideId "2032562"]
[BlackFideId "2207184"]
[WhiteElo "2349"]
[BlackElo "2255"]
[Result "0-1"]
[Round "03"]
[TimeControl "180+2"]
[Date "2023.01.17"]
[WhiteClock "0:00:01"]
[BlackClock "0:00:12"]

1. e4 {[%clk 0:03:00]}  e5 {[%clk 0:02:59]} 2. Nf3 {[%clk 0:02:59]}  Nc6 {[%clk 0:03:00]} 3. c3 {[%clk 0:02:57]}  Nf6 {[%clk 0:02:59]} 4. d4 {[%clk 0:02:57]}  d5 {[%clk 0:02:37]} 5. Bb5 {[%clk 0:02:55]}  exd4 {[%clk 0:02:21]} 6. e5 {[%clk 0:02:48]}  Ne4 {[%clk 0:02:21]} 7. Nxd4 {[%clk 0:02:32]}  Bd7 {[%clk 0:02:21]} 8. Bxc6 {[%clk 0:02:32]}  bxc6 {[%clk 0:02:21]} 9. O-O {[%clk 0:02:30]}  Be7 {[%clk 0:02:20]} 10. f3 {[%clk 0:02:30]}  Nc5 {[%clk 0:02:20]} 11. Be3 {[%clk 0:02:25]}  O-O {[%clk 0:02:19]} 12. Nd2 {[%clk 0:02:24]}  Nd3 {[%clk 0:02:17]} 13. f4 {[%clk 0:02:12]}  c5 {[%clk 0:02:04]} 14. N4b3 {[%clk 0:02:05]}  Nxb2 {[%clk 0:02:04]} 15. Qh5 {[%clk 0:02:01]}  g6 {[%clk 0:02:00]} 16. Qh6 {[%clk 0:01:46]}  c4 {[%clk 0:01:54]} 17. f5 {[%clk 0:01:30]}  Bxf5 {[%clk 0:01:47]} 18. Rxf5 {[%clk 0:01:29]}  gxf5 {[%clk 0:01:47]} 19. Nd4 {[%clk 0:01:30]}  Kh8 {[%clk 0:01:36]} 20. Nxf5 {[%clk 0:01:18]}  Rg8 {[%clk 0:01:35]} 21. Bd4 {[%clk 0:01:10]}  Rg6 {[%clk 0:01:27]} 22. e6+ {[%clk 0:00:46]}  f6 {[%clk 0:01:27]} 23. Qh4 {[%clk 0:00:47]}  c5 {[%clk 0:01:26]} 24. Be3 {[%clk 0:00:18]}  Nd3 {[%clk 0:01:26]} 25. Nh6 {[%clk 0:00:15]}  Ne5 {[%clk 0:01:17]} 26. Bf4 {[%clk 0:00:14]}  Rxh6 {[%clk 0:01:13]} 27. Qxh6 {[%clk 0:00:13]}  Ng6 {[%clk 0:01:12]} 28. Bg3 {[%clk 0:00:11]}  Qb6 {[%clk 0:01:02]} 29. Re1 {[%clk 0:00:11]}  Rd8 {[%clk 0:00:57]} 30. Nf3 {[%clk 0:00:11]}  d4 {[%clk 0:00:54]} 31. Nh4 {[%clk 0:00:08]}  Nxh4 {[%clk 0:00:45]} 32. Bxh4 {[%clk 0:00:09]}  Rf8 {[%clk 0:00:40]} 33. Qh5 {[%clk 0:00:02]}  Qc6 {[%clk 0:00:31]} 34. Qf5 {[%clk 0:00:02]}  d3 {[%clk 0:00:26]} 35. Bg3 {[%clk 0:00:01]}  d2 {[%clk 0:00:22]} 36. Rd1 {[%clk 0:00:01]}  Rd8 {[%clk 0:00:22]} 37. h3 {[%clk 0:00:02]}  Qa4 {[%clk 0:00:21]} 38. Qf3 {[%clk 0:00:02]}  Qc2 {[%clk 0:00:20]} 39. Bf4 {[%clk 0:00:02]}  Rd3 {[%clk 0:00:19]} 40. Qe2 {[%clk 0:00:02]}  Qxc3 {[%clk 0:00:17]} 41. Kh2 {[%clk 0:00:02]}  Qd4 {[%clk 0:00:17]} 42. Qh5 {[%clk 0:00:02]}  Qxf4+ {[%clk 0:00:17]} 43. Kh1 {[%clk 0:00:03]}  Rd8 {[%clk 0:00:15]} 44. Qf7 {[%clk 0:00:03]}  Qd6 {[%clk 0:00:12]} 45. Kg1 {[%clk 0:00:01]}  c3 {[%clk 0:00:12]} 46. Qh5 {[%clk 0:00:01]}  c2 {[%clk 0:00:13]} 47. Rf1 {[%clk 0:00:02]}  d1=Q {[%clk 0:00:13]} 48. Kf2 {[%clk 0:00:01]}  Q1d4+ {[%clk 0:00:12]} 0-1


[Site "https://www.chess.com"]

[Event "Titled Tuesday Blitz January 17 Late 2023"]
[White "Vega Gutierrez, Sabrina"]
[Black "Andreev, Eduard"]
[WhiteFideId "2219026"]
[BlackFideId "14103400"]
[WhiteElo "2377"]
[BlackElo "2413"]
[Result "0-1"]
[Round "03"]
[TimeControl "180+2"]
[Date "2023.01.17"]
[WhiteClock "0:00:08"]
[BlackClock "0:00:41"]

1. e4 {[%clk 0:03:00]}  c5 {[%clk 0:02:55]} 2. Nf3 {[%clk 0:03:00]}  d6 {[%clk 0:02:54]} 3. d4 {[%clk 0:03:00]}  cxd4 {[%clk 0:02:55]} 4. Qxd4 {[%clk 0:02:58]}  Nc6 {[%clk 0:02:52]} 5. Bb5 {[%clk 0:02:56]}  Bd7 {[%clk 0:02:50]} 6. Bxc6 {[%clk 0:02:57]}  Bxc6 {[%clk 0:02:47]} 7. Nc3 {[%clk 0:02:57]}  e5 {[%clk 0:02:44]} 8. Qd3 {[%clk 0:02:57]}  h6 {[%clk 0:02:42]} 9. O-O {[%clk 0:02:56]}  Nf6 {[%clk 0:02:42]} 10. Rd1 {[%clk 0:02:47]}  Be7 {[%clk 0:02:39]} 11. Nd2 {[%clk 0:02:39]}  d5 {[%clk 0:02:36]} 12. exd5 {[%clk 0:02:33]}  Nxd5 {[%clk 0:02:37]} 13. Nxd5 {[%clk 0:02:18]}  Qxd5 {[%clk 0:02:35]} 14. Qxd5 {[%clk 0:02:15]}  Bxd5 {[%clk 0:02:35]} 15. c4 {[%clk 0:02:15]}  Bc6 {[%clk 0:02:34]} 16. Nb3 {[%clk 0:02:13]}  O-O {[%clk 0:02:32]} 17. Na5 {[%clk 0:02:09]}  Be4 {[%clk 0:02:25]} 18. Be3 {[%clk 0:01:53]}  b6 {[%clk 0:02:20]} 19. Rd7 {[%clk 0:01:49]}  Rfe8 {[%clk 0:02:14]} 20. Nb3 {[%clk 0:01:39]}  f5 {[%clk 0:02:10]} 21. f3 {[%clk 0:01:22]}  Bc6 {[%clk 0:02:07]} 22. Rc7 {[%clk 0:01:21]}  Ba4 {[%clk 0:02:07]} 23. c5 {[%clk 0:01:08]}  Bd8 {[%clk 0:01:39]} 24. cxb6 {[%clk 0:00:52]}  axb6 {[%clk 0:01:40]} 25. Rc3 {[%clk 0:00:50]}  Bf6 {[%clk 0:01:37]} 26. Rac1 {[%clk 0:00:42]}  e4 {[%clk 0:01:36]} 27. Bd4 {[%clk 0:00:39]}  Bg5 {[%clk 0:01:31]} 28. Be3 {[%clk 0:00:28]}  f4 {[%clk 0:01:18]} 29. Bxb6 {[%clk 0:00:27]}  exf3 {[%clk 0:01:16]} 30. gxf3 {[%clk 0:00:22]}  Re2 {[%clk 0:01:13]} 31. R1c2 {[%clk 0:00:21]}  Rae8 {[%clk 0:01:12]} 32. Rxe2 {[%clk 0:00:09]}  Rxe2 {[%clk 0:01:13]} 33. Nd4 {[%clk 0:00:10]}  Rxb2 {[%clk 0:01:07]} 34. Bc7 {[%clk 0:00:09]}  Bf6 {[%clk 0:01:04]} 35. Rd3 {[%clk 0:00:09]}  g5 {[%clk 0:00:57]} 36. Nf5 {[%clk 0:00:08]}  Bc2 {[%clk 0:00:48]} 37. Ra3 {[%clk 0:00:08]}  Bxf5 {[%clk 0:00:46]} 38. Ra8+ {[%clk 0:00:07]}  Kg7 {[%clk 0:00:45]} 39. Ra7 {[%clk 0:00:08]}  Kg6 {[%clk 0:00:44]} 40. Ra6 {[%clk 0:00:08]}  Kg7 {[%clk 0:00:41]} 41. Ra7 {[%clk 0:00:08]}  Bd4+ {[%clk 0:00:41]} 0-1


[Site "https://www.chess.com"]